{"text_format":"1","workbook":"xlsx","n_sheets":1,"sheets":["INVOICE"],"not_rendered":{"charts":0,"images":3,"macros":1,"external_links":0,"defined_names":5,"comments":0,"pivot_tables":0},"unopened":[],"bounds":{"document_bytes":16777216,"sheet_cells":100000,"rows_first":2000,"rows_last":500,"rows_between":2000,"halvings":0,"cell_chars":16384,"cell_head_chars":4096},"cells_cut":0,"cells_raw":0,"read":"whole","date_system":"1900"}

{"sheet":"INVOICE","index":0,"n_rows":236,"n_cols":6,"rows_kept":236,"cut":false,"hidden":false,"merged":[[159,0,171,5],[154,0,154,1],[141,0,145,5],[146,0,146,5],[147,0,149,5],[151,2,151,3],[152,2,152,3],[234,0,234,1],[232,2,232,3],[233,2,233,3],[187,0,188,5],[199,0,199,5],[200,0,202,5],[223,2,223,3],[224,2,224,3],[176,0,176,5],[178,0,181,5],[182,0,182,5],[184,0,184,5],[185,0,185,5],[16,0,16,1],[66,0,66,5],[67,0,67,5],[68,0,78,5],[18,0,18,1],[17,0,17,1],[19,0,19,1],[65,0,65,5],[58,0,58,2],[59,3,59,4],[61,0,61,2],[63,0,63,5],[64,0,64,5],[60,3,60,4],[59,0,59,2],[61,3,61,4],[39,0,39,1],[40,0,40,1],[41,0,41,1],[42,0,42,1],[34,0,34,1],[35,0,35,1],[36,0,36,1],[43,0,43,1],[15,7,15,9],[57,3,57,4],[45,0,45,1],[47,0,47,1],[46,0,46,1],[48,0,48,1],[24,0,24,1],[25,0,25,1],[26,0,26,1],[49,0,49,1],[54,0,54,2],[55,0,55,2],[20,0,20,1],[38,0,38,1],[37,0,37,1],[56,0,56,2],[21,0,21,1],[22,0,22,1],[23,0,23,1],[27,0,27,1],[28,0,28,1],[57,0,57,2],[52,2,52,3],[32,0,32,1],[0,4,0,5],[14,0,14,1],[15,0,15,1],[7,3,7,4],[8,3,8,4],[9,3,9,4],[10,3,10,4],[0,0,0,2],[11,3,11,4],[6,3,6,4],[5,2,5,4],[12,3,12,4],[12,1,12,2],[44,0,44,1],[50,0,50,1],[29,0,29,1],[30,0,30,1],[31,0,31,1],[33,0,33,1],[151,0,151,1],[231,0,231,1],[231,2,231,3],[120,0,120,5],[121,0,128,5],[129,0,129,5],[130,0,139,5],[140,0,140,5],[79,0,79,5],[80,0,96,5],[97,0,97,5],[98,0,118,5],[119,0,119,5],[156,0,156,5],[153,2,153,3],[158,0,158,5],[172,0,172,5],[174,0,175,5]]}
[]
["202 Glen Hills rd "]
["Meriden, CT 06451",null,null,null,"DATE",{"$f":"TODAY()","v":"2023-04-20"}]
["Webpage: www.ctprofessionalhi.com",null,null,null,"Quote #",200]
["Email: ctprofessionalhi@gmail.com",null,null,null,"CUSTOMER ID"]
["Phone: 203 514-1403",null,"Insurance Claim  Number:"]
[null,null,null,"Policy Number:"]
["CUSTOMER"," ",null,"VALID UNTIL:",null,{"$f":"F3+30","v":"2023-05-20"}]
[]
[null,null,null,"TOTAL",null,{"$f":"F59","v":0}]
[null,null,null,"AMOUNT PAID",null,{"$f":"F60","v":0}]
[null,null,null,"AMOUNT DUE",null,{"$f":"F61","v":0}]
["Insurance Company:",null,null,"Cancellation fee 15%",null,{"$f":"F62","v":0}]
[]
["DESCRIPTION",null,"UNIT PRICE","QTY","TAXED","AMOUNT"]
[null,null,null,null,null,{"$f":"IF(D16=\"\",1,D16)*C16","v":0}]
[null,null,null,null,null,0]
[null,null,null,null,null,0]
[null,null,null,null,null,0]
[null,null,null,null,null,0]
[null,null,null,null,null,0]
[null,null,null,null,null,0]
[null,null,null,null,null,0]
[null,null,null,null,null,0]
[null,null,null,null,null,0]
[null,null,null,null,null,0]
[null,null,null,null,null,0]
[null,null,null,null,null,0]
[null,null,null,null,null,0]
[null,null,null,null,null,0]
[null,null,null,null,null,0]
[null,null,null,null,null,0]
[null,null,null,null,null,0]
[null,null,null,null,null,0]
[null,null,null,null,null,0]
[null,null,null,null,null,0]
[null,null,null,null,null,0]
[null,null,null,null,null,0]
[null,null,null,null,null,0]
[null,null,null,null,null,0]
[null,null,null,null,null,0]
[null,null,null,null,null,0]
[null,null,null,null,null,0]
[null,null,null,null,null,{"$f":"IF(D44=\"\",1,D44)*C44","v":0}]
[null,null,null,null,null,{"$f":"IF(D45=\"\",1,D45)*C45","v":0}]
[null,null,null,null,null,{"$f":"IF(D46=\"\",1,D46)*C46","v":0}]
[null,null,null,null,null,{"$f":"IF(D47=\"\",1,D47)*C47","v":0}]
[null,null,null,null,null,{"$f":"IF(D48=\"\",1,D48)*C48","v":0}]
[null,null,null,null,null,0]
[null,null,null,null,null,0]
[null,null,null,null,null,{"$f":"IF(D51=\"\",1,D51)*C51","v":0}]
["                                                   HOURLY RATE          ",null,"HOURS WORKED",null,null,{"$f":"D52*B52*24","v":0}]
["FIXED PRICE ",null,"MARK IF LABOR IS TAXED",null,null,{"$f":"B53","v":0}]
[null,null,null,"[42]","Subtotal",{"$f":"SUM(F16:F53)","v":0}]
["TERMS AND CONDITIONS",null,null,null,"Taxable",{"$f":"SUMIF(E16:E53,\"=x\",F16:F53)","v":0}]
["1. 15% initial fee upon approval from insurance. ( 7. insurance claims policy line A & line B1 & B4 )",null,null,null,"Tax rate",6.3500000000000001E-2]
["2. Prices are subject to change without notice (1- Terms & Conditions line D)",null,null,null,"Tax due",{"$f":"ROUND(F55*F56,2)","v":0}]
["3. Balance due upon comletion of work (9. Payment policy line B)",null,null,"Other Balance Due"]
["4. Cancellation fee upon approval (3. Cancellation Policy line A,A1,A2,A3,A4,B & C)",null,null,null,"TOTAL",{"$f":"SUM(F54,F57,F58)","v":0}]
["5. Please sign - Customer Acceptance (sign below): (11- Signature Policy line A & B )",null,null,"Payment Paid"]
["x __________________________________","DATE","____________","Balance Due",null,{"$f":"F59-F60","v":0}]
["Print Name:",null,null,"Cancellation fee 15%",null,{"$f":"F59*(100%-15%)-F59","v":0}]
[]
[]
["Connecticut’s Professional Home Improvement, LLC\nTerms & Conditions, Cancellation Policy and Hourly Rate Conditions\n "]
[]
["1.   Terms & Conditions"]
[]
["A. Connecticut’s Professional Home Improvement, LLC RESERVES THE RIGHT TO CHANGE ITS TERMS AND CONDITIONS AT ANY TIME WITHOUT GIVING PRIOR NOTICE. ANY TERMS AND CONDITIONS NOT INCLUDED ON THIS PAGE ARE  \n     SUBJECT TO THE SOLE DISCRETION OF Connecticut’s Professional Home Improvement, LLC.\nB. By accepting a quote with Connecticut’s Professional Home Improvement, LLC, either by telephone, email, online, or in any other manner, you accept and agree, without limitation or qualification, to the following Terms and Conditions.\nC. Connecticut’s Professional Home Improvement, LLC requires a 50% deposit to initialize any jobs. Customers are billed from the time they approve the quote, until the time  the job is done. Connecticut’s Professional Home \n     Improvement, LLC shall not be held responsible for late arrivals caused by, but not limited to, acts of God/nature, incorrect pickup or drop off information provided by the customer, or any situation out of our control,(such as loss of GPS due to poor cell phone rec reception, bad weather, accidents, traffic or vehicle malfunctions) Connecticut’s Professional Home Improvement, LLC isn’t liable in the event of mechanical breakdowns while in route.\nD. A confirmation will be sent to the email, text or call provided by the customer. It is the customer’s responsibility to review the confirmation information for accuracy.The price is fixed once the quote has been finalized. Only \n    unexpected changes due to material or increase of hours will adjust the price on the quote, early dismissal, downsizing, or shortening of hours, will not adjust the price on the quote.  "]
[]
[]
[]
[]
[]
[]
[]
[]
[]
[]
["2.   Confirmation Policy "]
["A. Before any job is confirmed and started Connecticut’s Professional Home Improvement, LLC must receive at least one of the following methods as a confirmation:\nB. Return the Quote signed\nC. If confirmation is by  (TEXT MESSAGE) OR (EMAIL)  it must be in one of the following methods with the following information:\n      C1. By text message with the following information:\n            Name:\n            Address:\n            Date of job to be started:\n            Date of Message sent:\n            {And a message stating you agree with the quote given and if possible, send a picture of the quote signed} If a message is received without the customer confirming their consent the job won’t be scheduled or started.\n      C2. By email with the following information:\n           Name:\n           Address:\n           Date of job to be started:\n           Date of Message sent:\n           {And a message stating you agree with the quote given and if possible, send a picture of the quote signed} If a message is received without the customer confirming their consent the job won’t be scheduled or started.\nD. Once you have confirmed that you agree on everything on the quote and acknowledged what  you have read on the quote, and the confirmation is sent - you will be charged a cancellation  penalty fee or restocking fee if you don’t inform us of your cancancellation in the 5-day time frame. "]
[]
[]
[]
[]
[]
[]
[]
[]
[]
[]
[]
[]
[]
[]
[]
[]
["3.   Cancellation Policy"]
["A. The purpose of Connecticut’s Professional Home Improvement, LLC cancellation policy is to limit when, how, and why a client can cancel an appointment or service without penalty. To clearly  communicate this information, \n    every cancellation should follow the following terms and conditions:\n              A1. To cancel a service without penalty you must give your cancellation notice within 3-days.\n              A2. A late cancellation penalty or a restocking fee will be applied if not communicated  before the 3-day time frame. The restocking fee is applied by the vendor if they wish to do so, Connecticut’s Professional Home Improvement, LLC will only charge a restocking ferestocking fee if there is one from the vendor, the cancellation penalty of ten percent (15%) of the  total of the quote is applied by Connecticut’s Professional Home Improvement, LLC (taxes are not applied, unless the restocking fee from vendors were applied)were applied).  All quotes include the amount of your cancellation penalty, whether it’s a specific fee or a percentage of the job.\n              A3. The contact information for cancellations is given on every quote or business card with a contact number or email to cancel at any time before the 3-day time frame.\n              A4. All special orders and custom orders must be paid in full with tax even if customer cancels and doesn't go forward with the work.\nB. Your cancellation must be in one of the following methods (TEXT MESSAGE) OR (EMAIL) with the following information:\n          Name:\n          Address:\n          Date of job that was going to be started:\n          Date of Message sent:\n          {And a message stating your cancellation} \n           If no message is received of the customers cancellation, the penalty fees will be applied.\n C. Any cancellation made less than 3-days before the date of service, will incur a (15%) charge of the total amount before taxes. Cancellations must be done either by email at ctprofessionalhi@gmail.com or by text to (203) 514-1403, 3-days prior to your schescheduled date. A customer who refuses Connecticut’s Professional Home Improvement, LLC service or who does not appear at the designated location upon approval of the quote  givenilwill incur the 15%  cancellation penalty of the total of the quote. Proof of c of cancellation requires the provision  of a valid cancellation email or text from Connecticut’s Professional Home Improvement, LLC. In the event of aaNational or Global crisis, which requires mandatory cancellations lock down, after the 3-day time frame will be abe automatically cancelled and no cancellation penalty will be applied."]
[]
[]
[]
[]
[]
[]
[]
[]
[]
[]
[]
[]
[]
[]
[]
[]
[]
[]
[]
[]
["4.   Arrival & Wait time Policy "]
[]
["A. ARRIVAL TIME\n              A1. Connecticut’s Professional Home Improvement, LLC will always prepare in advance to avoid unnecessary delays in arrival time. However, road, traffic and weather conditions are oftentimes beyond the reasonable control of the company and/or the company.company.  No cancellation penalty can be given as a result of late arrivals due to such conditions or other occurrences out of the reasonable control of the company. We will try our very best to not have to change dates. We reserve the right to change a date withdate without prior notice, if the vehicle is unavailable or if there is any other risk in not making it on time. Connecticut’s Professional Home Improvement, LLC is not liable in the event of mechanical breakdowns while in route and will only be  for maki responsibresponsible fore for making up lost time at a mutually agreed date.\n B.WAIT TIME\n              B1. Connecticut’s Professional Home Improvement, LLC offers a 10-minute grace period from the updated arrival time.  Therefore, after the 10-minute grace period from the updated arrival time, wait time will be \n                    considered part of the hours agreed on the quote, there for Connecticut’s Professional Home Improvement, LLC reserves the right to increase the hours quoted on the quote agreed on."]
[]
[]
[]
[]
[]
[]
[]
["5.   Hourly rate or fixed labor Policy"]
["A. Connecticut’s Professional Home Improvement, LLC provides an hourly rate for all services based on a one (1) hour or more minimum charge.\nB. The purpose of Connecticut’s Professional Home Improvement, LLC hourly rate policy conditions is to limit when, how, and Why a client pays for the time spent at the job site.\nC. Once you confirm that you agree on everything on the quote, and what you have read on the quote, you will be charged an hourly rate to do the work quoted. The hourly rate includes:\n               c1. The time from start to finish.\n               c2. The time spent getting any materials needed during the hours of work, that were not expected. (Prices on the materials are subject to change without notice due to increase of material prices by the vendors).\n               c3. If the customer asks to do any other jobs not related to what was quoted and there is an increase on the hours, there will be an increase on the amount agreed on the quote.\n               c4. If Connecticut’s Professional Home Improvement, LLC must leave for any reason that has nothing to do with the job quoted, that time will NOT be billed for that time of  absence. Early dismissal, downsizing, or \n                     shortening of hours, will not adjust the price on the quote. (1 - Terms & Conditions line D)\nE. If Connecticut’s Professional Home Improvement, LLC has a sub-contractor to do the quoted job, there is no hourly rate applied, therefore the sub-contractor may leave at any time, the job will be completed as soon as possible  by the same contractor or a difdifferent one. If the work is going to be canceled a new schedule will be given if needed, without the customer having a penalty fee."]
[]
[]
[]
[]
[]
[]
[]
[]
[]
["6.   Additional Charges Policy"]
["A.     Additional charges include reimbursement for tolls, parking, dumpsters, permits. \nB.     HOLIDAYS\n               B1. An additional $25.00 per hour U.S. holiday surcharge will be charged to all trips occurring on:\n                       New Year’s Day       \n                       Easter Sunday\n                       Memorial Day\n                       Fourth of July\n                       Labor Day\n                       Thanksgiving Day\n                       Christmas Eve\n                       Christmas Day\n                       New Year’s Eve"]
[]
[]
[]
[]
["Customer Acceptance of page2 Terms & Conditions "]
["Signature:_________________________________________________________________\n\n__________________________________________________________________\n PRINT NAME                                                                             Date"]
[]
[]
[]
["Insurance Company:",null,{"$f":"B13","v":0}]
[null,"Insured Customer:",{"$f":"A9","v":0}]
[null,"Policy Number:",{"$f":"F7","v":0}]
["Insurance Claim Number:",null,{"$f":"F6","v":0}]
[null,"Quote:",{"$f":"F4","v":200}]
["Connecticut’s Professional Home Improvement, LLC\nTerms & Conditions, Cancellation Policy and Hourly Rate Conditions"]
[]
["7.   Insurance claims Policy "]
["A. All Insurance claims have a 15% initial fee from the ESTIMATED LABOR. ALL (Quotes and terms & condition) have must be signed by the customer before sent to the Insurance claims dpt. Once the clam is approved by the \n    Insurance, the quote is officially valid, and all terms and conditions are applied. Once approved the 15% initial fee will be deducted from the insurance claim at the end of the repairs. \nB. If the customer doesn’t go forward with the claim once approved Connecticut’s Professional Home Improvement, LLC RESERVES THE RIGHT TO ASK FOR 100% OF THE LABOR QUOTED ,\n    THE 100% COVERS THE FOLLOWING FEES:\n               B1- 15% initial fee is nonrefundable \n               B2- 35% for the written quote\n               B3- 50% for a cancelation fee  \n               B4- { ALL FEES in B1,B2,B3  ARE DETUCTED FROM LABOR QUOTED TO THE INSURANCE CLAIM }\nC. The following amounts are the responsabilitys of the customer if they  don’t go forward with the claim once approved:\n              C1-All restocking fee if the vendor applies them \n              C2- All special orders and custom orders must be paid in full with taxes once the claim is approved by the insurance. If the special orders or custom orders has been placed and the customer decides not to go forward \n                    with the claim once aproved,the special orders or custom orders are the customers responsability to keep all special orders and custom orders if vender dont ecept them back .\n              C3- { ALL PAYMENTS FOR ALL SPECIAL ORDERS AND CUSTOM ORDERS AND OTHER MATERIALS BOUGHT ARE DETUCTED FROM AMOUNT ON THE MATERIALS QUOTED TO THE INSURANCE CLAIM }\n              C4- NO MATERIAL IS PAID WITH THE LABOR AMOUNT QUOTED TO THE INSURANCE !\nD. If the customer doesn’t go forward with the claim once approved, Connecticut’s Professional Home Improvement, LLC RESERVES THE RIGHT TO ASK FOR ALL PENALTIES AND AN EMAIL WILL BE SENT TO THE INSURANCE COMPANY \n    STATING THAT THE CUSTOMER WON'T GO FORWARD WITH THE REPAIRS. "]
[]
[]
[]
[]
[]
[]
[]
[]
[]
[]
[]
[]
["8.   Contract Obligations Policy "]
[]
["A. You acknowledge that reading and receiving our terms and conditions listed above for this agreement, you understand and agree to pay for any penalties to Connecticut’s Professional Home Improvement, LLC. You will also agree to the above Terms and CoConditions. You understand and agree to pay the deposit and / or full amount based on the terms of the cancellation policy. "]
[]
["9.   Payments Policy"]
[]
["A. A 15% initial fee from the quote apon approval \nB.  All Remaining balance is due upon complition, If the customer has a balance due and not paid, there will be a lein put on the real estate with the amount due and for every day that goes by there will be a 12% intrestcincreased reased to the balance on the preprevius updataded balance, and all court & legal fees are paid by the customer,for exemple:\n    [ 1st day  Balance due $100.00]    [ 2nd day $100.00 +2% = $112.00]    [ 3rd day $112.00 +12% = $125.44]    [ 4th day $125.44 +12% = $140.49]    [ 5th day $140.49 +12% = $157.34]"]
[]
[]
[]
["10.   Questions & Concerns Policy"]
[]
["A1. For any questions or concerns, feel free to contact us by phone (203) 514-1403 or email ctprofessional@gmail.com at any time."]
["11.   Signature Policy"]
[]
[" A. All Quotes and and terms & conditions have must be signed by the customer before starting any work.\n B. Insurance claims and terms & conditions must be signed by the customer before sending to the insurance."]
[]
[]
[]
[]
[]
[]
[]
[]
[]
[]
[]
["Customer Acceptance of page2 Terms & Conditions "]
["Signature:_________________________________________________________________\n\n__________________________________________________________________\n PRINT NAME                                                                             Date"]
[]
[]
[]
[]
[]
[]
[]
[]
[]
[]
[]
[]
[]
[]
[]
[]
[]
[]
[]
[]
[]
[]
[]
[]
[]
[]
[]
[]
[]
[]
["Insurance Company:",null,{"$f":"B13","v":0}]
[null,"Insured Customer:",{"$f":"A9","v":0}]
[null,"Policy Number:",{"$f":"F7","v":0}]
["Insurance Claim Number:",null,{"$f":"F6","v":0}]
[null,"Quote:",{"$f":"F4","v":200}]